bitfinex-derivatives/quotes_SOLF0:USTF0_20250207
["timestamp","ask_amount","ask_price","bid_price","bid_amount"]
[1738955171809,0.03544922,197.74,197.64,13.80738805]
[1738955172203,3.8163,197.75,197.64,13.80738805]
[1738955172403,5.0564,197.7,197.66,5.0572]
[1738955172604,0.03406207,197.71,197.64,13.80738805]
[1738955172806,5.09036207,197.71,197.67,5.0569]
[1738955173107,5.09036207,197.71,197.64,13.80738805]
[1738955173108,0.03406207,197.71,197.64,13.80738805]
[1738955173307,0.03406207,197.71,197.67,13.80738805]
[1738955173506,0.03406207,197.71,197.7,5.0563]
[1738955174210,0.03406207,197.71,197.7,18.86368805]
[1738955175012,3.9666,197.81,197.7,13.80738805]
[1738955175213,3.9666,197.81,197.74,13.80738805]
[1738955175413,3.9666,197.81,197.74,18.86248805]
[1738955175809,3.9666,197.81,197.74,13.80738805]
[1738955176312,0.03497697,197.79,197.76,0.03760737]
[1738955176513,0.03497697,197.79,197.76,5.09230737]
[1738955177713,0.03497697,197.79,197.76,0.03760737]
[1738955178115,5.0546,197.77,197.76,0.03760737]
[1738955178911,0.03497697,197.79,197.69,5.0566]
[1738955179311,0.03497697,197.79,197.7,5.0563]
[1738955179519,3.9666,197.81,197.7,5.0563]
[1738955179809,5.0556,197.74,197.64,22.08078273]
[1738955180025,3.9666,197.81,197.68,5.0567]
[1738955180214,0.03449908,197.71,197.68,5.0567]
[1738955180416,0.03397888,197.71,197.68,5.0567]
[1738955180811,0.03397888,197.71,197.69,5.0565]
[1738955182709,0.03397888,197.71,197.64,22.08078273]
[1738955182907,0.03397888,197.71,197.62,3.1136]
[1738955183111,0.03397888,197.71,197.58,24.21918273]
[1738955183315,3.78,197.75,197.58,24.21918273]
[1738955183316,5.0576,197.66,197.62,5.0583]
[1738955183615,5.09104148,197.66,197.62,5.0583]
[1738955185108,0.03344148,197.66,197.63,5.0581]
[1738955185708,0.03344148,197.66,197.65,5.0576]
[1738955186411,0.03344148,197.66,197.61,22.08078273]
[1738955186617,0.03344148,197.66,197.64,5.0578]
[1738955187615,0.03344148,197.66,197.61,22.08078273]
[1738955187616,0.03344148,197.66,197.65,5.0576]
[1738955188513,0.03344148,197.66,197.61,22.08078273]
[1738955188720,0.03344148,197.66,197.64,5.0577]
[1738955189222,0.03344148,197.66,197.65,5.0576]
[1738955192419,0.03344148,197.66,197.58,2.1384]
[1738955192623,0.03344148,197.66,197.55,22.08078273]
[1738955192624,0.03344148,197.66,197.52,22.08078273]
[1738955192820,10.0,197.64,197.52,22.08078273]
[1738955193123,0.0325951,197.61,197.59,5.0591]
[1738955193524,0.0325951,197.61,197.6,5.0589]
[1738955195228,0.0325951,197.61,197.59,5.059]
[1738955197025,0.0325951,197.61,197.6,5.0589]
[1738955199122,0.0325951,197.61,197.54,13.82703372]
[1738955199622,5.0913951,197.61,197.57,5.0595]
[1738955199923,13.85962882,197.61,197.48,13.82703372]
[1738955200128,13.82703372,197.61,197.48,13.82703372]
[1738955200324,0.03568834,197.56,197.48,13.82703372]
[1738955200524,0.03568834,197.56,197.5,5.0614]
[1738955200724,0.03568834,197.56,197.48,13.82703372]
[1738955201729,0.03568834,197.56,197.55,5.0602]
[1738955202130,0.03568834,197.56,197.48,13.82703372]
[1738955203133,0.03568834,197.56,197.46,5.2314]
[1738955203134,5.0604,197.55,197.5,5.0614]
[1738955203335,0.03568834,197.56,197.46,5.2314]
[1738955203632,0.03568834,197.56,197.46,1.5283]
[1738955203828,13.82703372,197.55,197.42,13.82703372]
[1738955204333,0.03283852,197.5,197.42,13.82703372]
[1738955204628,0.03283852,197.5,197.36,20.79883137]
[1738955204629,13.82703372,197.49,197.36,20.79883137]
[1738955205037,0.03551605,197.44,197.36,20.79883137]
[1738955205329,0.03551605,197.44,197.4,5.064]
[1738955205535,0.03551605,197.44,197.39,13.82703372]
[1738955206132,23.82703372,197.64,197.42,13.82703372]
[1738955206333,23.82703372,197.64,197.4,18.53698477]
[1738955206334,13.82703372,197.61,197.48,13.82703372]
[1738955206535,5.0597,197.58,197.51,5.061]
[1738955206723,5.0597,197.58,197.43,3.6253]
[1738955206724,5.0597,197.58,197.45,22.13893241]
[1738955206926,22.13893241,197.62,197.45,22.13893241]
[1738955207135,0.03276641,197.55,197.52,0.03446002]
[1738955210935,0.03276641,197.55,197.54,5.0604]
[1738955211132,0.03276641,197.55,197.52,0.03446002]
[1738955211827,0.03276641,197.55,197.54,5.0604]
[1738955212833,0.03276641,197.55,197.52,0.03446002]
[1738955213035,0.03276641,197.55,197.52,5.09516002]
[1738955213639,0.03276641,197.55,197.52,0.03446002]
[1738955214733,5.09296641,197.55,197.52,0.03446002]
[1738955215743,0.03276641,197.55,197.52,0.03446002]
[1738955216341,0.03276641,197.55,197.53,5.0607]
[1738955216745,0.03276641,197.55,197.52,5.09536002]
[1738955217240,0.03276641,197.55,197.52,0.03446002]
[1738955217437,0.03276641,197.55,197.53,5.0607]
[1738955218142,5.0607,197.53,197.52,0.03446002]
[1738955218442,1.55196641,197.55,197.39,27.21873241]
[1738955218639,2.0912,197.54,197.39,27.21873241]
[1738955219237,5.0619,197.49,197.39,27.21873241]
[1738955219641,0.03799007,197.46,197.39,27.21873241]
[1738955219945,0.03799007,197.46,197.41,5.0638]
[1738955220140,0.03799007,197.46,197.39,27.21873241]
[1738955220646,0.03799007,197.46,197.36,22.13893241]
[1738955220846,5.0625,197.46,197.36,22.13893241]
[1738955221140,22.13893241,197.53,197.36,22.13893241]
[1738955221141,0.03461475,197.43,197.36,22.13893241]
[1738955221347,5.09791475,197.43,197.33,22.13893241]
[1738955221548,0.03461475,197.43,197.33,22.13893241]
[1738955222146,5.0636,197.42,197.37,5.0646]
[1738955223147,5.09791475,197.43,197.38,5.0645]
[1738955223346,0.03461475,197.43,197.32,3.5961]
[1738955223550,5.0642,197.4,197.35,5.0653]
[1738955224048,22.13893241,197.38,197.24,27.88719062]
[1738955224237,5.3082,197.37,197.24,27.88719062]
[1738955224646,0.0340279,197.32,197.24,27.88719062]
[1738955225349,0.0340279,197.32,197.25,5.0679]
[1738955225648,0.0340279,197.32,197.24,27.88719062]
[1738955226247,5.0669,197.29,197.23,5.0684]
[1738955226442,5.0669,197.29,197.2,22.13893241]
[1738955226644,0.03645677,197.28,197.2,22.13893241]
[1738955226950,0.03645677,197.28,197.24,5.0681]
[1738955227349,0.03645677,197.28,197.18,6.97179765]
[1738955227550,0.03645677,197.28,197.21,5.0689]
[1738955227744,5.0674,197.27,197.21,5.0689]
[1738955228650,0.03645677,197.28,197.2,22.13893241]
[1738955228840,0.03645677,197.28,197.23,22.13893241]
[1738955229948,0.03645677,197.28,197.27,5.0674]
[1738955232346,0.03645677,197.28,197.23,22.13893241]
[1738955232647,0.03645677,197.28,197.2,22.13893241]
[1738955233854,0.03645677,197.28,197.26,5.0676]
[1738955234356,0.03645677,197.28,197.2,22.13893241]
[1738955235757,0.03645677,197.28,197.17,23.68083241]
[1738955235957,0.03645677,197.28,197.21,5.0688]
[1738955236558,0.03645677,197.28,197.17,23.68083241]
[1738955236760,0.03645677,197.28,197.2,5.0691]
[1738955236961,0.03645677,197.28,197.17,23.68083241]
[1738955237161,5.0676,197.26,197.21,5.0689]
[1738955239267,0.03645677,197.28,197.17,23.68083241]
[1738955239469,22.17538918,197.28,197.01,10.1478]
[1738955239764,5.2838,197.27,197.06,2.0136]
[1738955240065,0.03305093,197.21,197.17,5.0697]
[1738955241366,0.03305093,197.21,197.06,12.1587]
[1738955241562,0.03305093,197.21,197.15,22.13893241]
[1738955242769,0.03305093,197.21,197.13,22.13893241]
[1738955243067,5.0689,197.22,197.13,22.13893241]
[1738955243268,0.03225152,197.19,197.17,5.0697]
[1738955244073,0.03225152,197.19,197.13,22.13893241]
[1738955244270,0.03225152,197.19,197.15,5.0703]
[1738955244466,0.03225152,197.19,197.13,22.13893241]
[1738955245062,0.03225152,197.19,197.16,5.07]
[1738955245462,0.03225152,197.19,197.13,22.13893241]
[1738955245767,0.03225152,197.19,197.18,5.0697]
[1738955246367,5.0677,197.26,197.22,5.0685]
[1738955246872,25.93893241,197.34,197.19,22.13893241]
[1738955247662,25.93893241,197.34,197.25,0.03554409]
[1738955247663,0.03399602,197.28,197.25,0.03554409]
[1738955248863,5.0674,197.27,197.25,0.03554409]
[1738955250574,5.0676,197.26,197.25,0.03554409]
[1738955258173,5.10119602,197.28,197.25,0.03554409]
[1738955258477,0.03399602,197.28,197.25,0.03554409]
[1738955258775,0.03399602,197.28,197.26,5.0674]
[1738955259577,0.03399602,197.28,197.25,0.03554409]
[1738955259778,0.03399602,197.28,197.26,5.0676]
[1738955260377,0.03399602,197.28,197.27,5.0674]
[1738955261170,13.87203088,197.41,197.26,13.87203088]
[1738955261376,5.0652,197.36,197.32,5.0659]
[1738955261681,19.00223088,197.41,197.29,13.87203088]
[1738955261869,19.00223088,197.41,197.33,5.0656]
[1738955262069,5.0646,197.38,197.33,5.0656]
[1738955262381,0.03804748,197.37,197.34,0.03711623]
[1738955262880,5.0651,197.36,197.34,0.03711623]
[1738955263770,0.03804748,197.37,197.34,0.03711623]
[1738955263969,5.10284748,197.37,197.34,0.03711623]
[1738955266581,0.03804748,197.37,197.34,5.10251623]
[1738955266777,0.03804748,197.37,197.34,0.03711623]
[1738955267180,0.03804748,197.37,197.36,5.0651]
[1738955271080,0.03804748,197.37,197.34,0.03711623]
[1738955271081,194.6843,197.48,197.35,22.18413838]
[1738955271286,5.0627,197.46,197.42,5.0634]
[1738955271584,3.6843,197.48,197.38,22.18413838]
[1738955271977,5.0625,197.47,197.41,5.0638]
[1738955272177,0.03670976,197.45,197.41,0.03752073]
[1738955272881,5.0631,197.44,197.41,0.03752073]
[1738955274084,0.03670976,197.45,197.42,5.0635]
[1738955274286,0.03670976,197.45,197.41,0.03752073]
[1738955274878,0.03670976,197.45,197.43,5.0631]
[1738955275586,0.03670976,197.45,197.41,0.03752073]
[1738955275780,0.03670976,197.45,197.44,5.063]
[1738955280790,3.4921,197.54,197.44,22.18413838]
[1738955280991,3.4921,197.54,197.41,22.22165911]
[1738955281192,3.4921,197.54,197.41,22.18413838]
[1738955281489,3.4921,197.54,197.38,22.18413838]
[1738955281789,0.0381994,197.48,197.44,0.03460994]
[1738955282288,0.0381994,197.48,197.46,5.0624]
[1738955284086,0.0381994,197.48,197.47,5.0622]
[1738955285192,0.0381994,197.48,197.44,0.03460994]
[1738955285987,0.0381994,197.48,197.47,5.0622]
[1738955286888,0.0381994,197.48,197.44,0.03460994]
[1738955288789,0.0381994,197.48,197.45,5.0627]
[1738955288995,0.0381994,197.48,197.44,0.03460994]
[1738955290499,0.0381994,197.48,197.47,5.0622]
[1738955291495,0.0381994,197.48,197.45,5.0626]
[1738955291897,0.0381994,197.48,197.44,0.03460994]
[1738955292097,0.0381994,197.48,197.47,5.0622]
[1738955295903,55.54527054,197.56,197.52,5.0607]
[1738955296098,50.48517054,197.56,197.49,13.84466341]
[1738955296300,50.48517054,197.56,197.44,1.5169]
[1738955296498,50.48517054,197.56,197.49,5.0615]
[1738955297094,0.03341607,197.54,197.51,0.03835673]
[1738955297598,5.0609,197.53,197.51,0.03835673]
[1738955297805,0.03341607,197.54,197.51,0.03835673]
[1738955298603,5.0607,197.53,197.51,0.03835673]
[1738955298904,0.03341607,197.54,197.51,0.03835673]
[1738955299302,5.0609,197.53,197.51,0.03835673]
[1738955299504,0.03341607,197.54,197.51,0.03835673]
[1738955299705,5.061,197.52,197.51,0.03835673]
[1738955299901,1.6203,197.53,197.42,13.84466341]
[1738955301007,0.03681023,197.49,197.46,0.03305395]
[1738955301306,0.03681023,197.49,197.48,5.0618]
[1738955303205,1.023e-05,197.49,197.48,18.90646341]
[1738955303401,50.48517054,197.56,197.54,5.0603]
[1738955303612,23.84466341,197.64,197.54,5.0603]
[1738955303811,23.84466341,197.64,197.51,13.84466341]
[1738955304301,13.84466341,197.61,197.52,5.0609]
[1738955304507,0.03325985,197.57,197.53,0.03437979]
[1738955305008,5.0602,197.56,197.53,0.03437979]
[1738955305211,0.03325985,197.57,197.53,0.03437979]
[1738955305510,5.0604,197.54,197.53,0.03437979]
[1738955306410,0.03325985,197.57,197.49,5.0617]
[1738955306612,5.0609,197.53,197.49,5.0617]
[1738955307512,5.0609,197.53,197.5,5.0614]
[1738955307810,5.09590907,197.53,197.5,5.0614]
[1738955308111,5.0611,197.52,197.49,0.03607771]
[1738955310713,0.03500907,197.53,197.49,0.03607771]
[1738955311312,0.03500907,197.53,197.51,5.0611]
[1738955313011,0.03500907,197.53,197.52,5.061]
[1738955315206,9.07e-06,197.53,197.52,5.061]
[1738955315414,10.0,197.64,197.52,13.84466341]
[1738955315617,10.0,197.64,197.57,13.84466341]
[1738955316011,15.0579,197.64,197.59,5.0591]
[1738955316211,10.0,197.64,197.57,13.84466341]
[1738955316416,0.03867621,197.63,197.6,0.03576223]
[1738955320219,5.09677621,197.63,197.6,0.03576223]
[1738955321624,5.0587,197.61,197.57,5.0597]
[1738955321825,0.03867621,197.63,197.51,1.4815]
[1738955322024,23.84466341,197.64,197.51,1.4815]
[1738955322825,0.03776315,197.59,197.56,0.03622887]
[1738955323324,5.09716315,197.59,197.56,0.03622887]
[1738955323725,0.03776315,197.59,197.57,5.0595]
[1738955323925,0.03776315,197.59,197.56,13.88089228]
[1738955324726,0.03776315,197.59,197.56,0.03622887]
[1738955325225,0.03776315,197.59,197.56,5.09592887]
[1738955327424,0.03776315,197.59,197.56,0.03622887]
[1738955329019,5.0594,197.58,197.56,0.03622887]
[1738955330529,0.03776315,197.59,197.56,0.03622887]
[1738955330730,5.0597,197.57,197.56,0.03622887]
[1738955331328,5.09716315,197.59,197.56,0.03622887]
[1738955331528,0.03776315,197.59,197.56,0.03622887]
[1738955331930,0.03776315,197.59,197.57,5.0597]
[1738955332331,0.03776315,197.59,197.56,0.03622887]
[1738955332629,5.09716315,197.59,197.56,0.03622887]
[1738955332933,5.0594,197.58,197.56,0.03622887]
[1738955334633,0.03776315,197.59,197.56,0.03622887]
[1738955335029,0.03776315,197.59,197.56,5.09612887]
[1738955335226,0.03776315,197.59,197.56,0.03622887]
[1738955335431,0.03776315,197.59,197.58,5.0594]
[1738955336326,0.03776315,197.59,197.56,13.88089228]
[1738955336327,10.0,197.64,197.63,5.0581]
[1738955339731,7.5382,197.64,197.63,5.0581]
[1738955339935,0.03346591,197.65,197.64,5.0579]
[1738955340131,3.4883,197.75,197.62,13.88042217]
[1738955340327,8.5434,197.75,197.7,5.0561]
[1738955341337,0.03285339,197.74,197.71,0.03229275]
[1738955341732,0.03285339,197.74,197.72,5.0556]
[1738955342732,0.03285339,197.74,197.71,0.03229275]
[1738955342931,0.03285339,197.74,197.73,5.0556]
[1738955343236,3.0414,197.81,197.71,0.03229275]
[1738955343540,3.0414,197.81,197.73,13.84466341]
[1738955344331,0.03806331,197.79,197.75,0.0378953]
[1738955344537,3.0414,197.81,197.7,13.84466341]
[1738955344734,0.03306412,197.79,197.75,0.03530782]
[1738955345437,0.03306412,197.79,197.76,5.0546]
[1738955345840,0.03306412,197.79,197.75,0.03530782]
[1738955346138,0.03306412,197.79,197.78,5.0543]
[1738955346537,0.03306412,197.79,197.77,5.0545]
[1738955346837,0.03306412,197.79,197.75,0.03530782]
[1738955347231,0.03306412,197.79,197.76,13.84466341]
[1738955347434,0.03306412,197.79,197.78,5.0543]
[1738955348034,0.03306412,197.79,197.76,5.0547]
[1738955348436,0.03306412,197.79,197.75,0.03530782]
[1738955348839,0.03306412,197.79,197.76,5.0548]
[1738955349036,0.03306412,197.79,197.75,0.03530782]
[1738955350335,5.08716412,197.79,197.75,0.03530782]
[1738955350536,0.03306412,197.79,197.75,0.03530782]
[1738955351135,5.0548,197.77,197.75,0.03530782]
[1738955351945,5.0548,197.76,197.75,0.03530782]
[1738955352337,13.87772753,197.79,197.67,13.84466341]
[1738955352539,5.0555,197.74,197.69,5.0564]
[1738955352842,5.0555,197.74,197.64,0.5207]
[1738955352843,13.84466341,197.76,197.64,13.84466341]
[1738955353242,1.9764,197.75,197.64,13.84466341]
[1738955353643,0.03657342,197.71,197.68,0.03532144]
[1738955353844,0.03657342,197.71,197.68,5.09202144]
[1738955354346,0.03657342,197.71,197.68,0.03532144]
[1738955355141,0.03657342,197.71,197.7,18.90096341]
[1738955356435,6.5728,197.78,197.74,5.0553]
[1738955356639,6.5728,197.78,197.7,13.84466341]
[1738955356945,1.5183,197.78,197.7,13.84466341]
[1738955357546,6.5727,197.78,197.73,5.0553]
[1738955357746,0.03243726,197.76,197.72,0.03238302]
[1738955358247,0.03243726,197.76,197.75,5.0551]
[1738955359041,0.03243726,197.76,197.73,5.0554]
[1738955359946,0.03243726,197.76,197.72,0.03238302]
[1738955360842,0.03243726,197.76,197.72,5.08798302]
[1738955362146,0.03243726,197.76,197.72,0.03238302]
[1738955362641,0.03243726,197.76,197.73,13.84466341]
[1738955363848,0.03243726,197.76,197.75,5.0551]
[1738955364543,5.0532,197.83,197.79,5.0539]
[1738955364743,1.9953,197.84,197.77,13.84466341]
[1738955365048,3.0533,197.9,197.77,13.84466341]
[1738955365346,2.0483,197.89,197.77,13.84466341]
[1738955365545,2.0483,197.89,197.8,13.84466341]
[1738955365749,0.03592631,197.85,197.81,0.03428544]
[1738955366950,0.03592631,197.85,197.81,5.08778544]
[1738955368050,0.03592631,197.85,197.81,0.03428544]
[1738955368250,0.03592631,197.85,197.82,5.0532]
[1738955370350,0.03592631,197.85,197.83,5.053]
[1738955373657,0.03592631,197.85,197.81,0.03428544]
[1738955373859,0.03592631,197.85,197.82,5.0532]
[1738955374261,0.03592631,197.85,197.81,0.03428544]
[1738955375158,5.0533,197.82,197.81,0.03428544]
[1738955375755,5.0533,197.82,197.78,5.0541]
[1738955376960,5.0533,197.82,197.78,5.09095546]
[1738955377761,0.03592631,197.85,197.8,5.0538]
[1738955378959,5.0528,197.84,197.8,5.0538]
[1738955381457,0.03592631,197.85,197.81,5.0535]
[1738955381659,0.03592631,197.85,197.78,0.03685546]
[1738955382153,5.0528,197.84,197.8,5.0536]
[1738955382360,0.03592631,197.85,197.78,0.03685546]
[1738955383163,0.03592631,197.85,197.82,5.0532]
[1738955383653,5.08862631,197.85,197.78,0.03685546]
[1738955384663,5.08862631,197.85,197.8,8.82939772]
[1738955384957,0.03592631,197.85,197.82,5.0531]
[1738955387363,0.03592631,197.85,197.8,8.82939772]
[1738955387559,0.03592631,197.85,197.78,8.86625318]
[1738955388463,5.0529,197.84,197.8,5.0536]
[1738955388859,0.03592631,197.85,197.8,8.82939772]
[1738955389663,0.03592631,197.85,197.82,5.0531]
[1738955390465,0.03592631,197.85,197.8,8.82939772]
[1738955390666,5.0528,197.84,197.81,5.0535]
[1738955390861,0.03592631,197.85,197.81,5.0535]
[1738955391766,5.0528,197.84,197.81,5.0535]
[1738955391961,0.03592631,197.85,197.78,8.86625318]
[1738955392157,0.03592631,197.85,197.8,5.0538]
[1738955392960,5.0528,197.84,197.8,5.0538]
[1738955393667,0.03592631,197.85,197.82,5.0532]
[1738955394468,0.03592631,197.85,197.84,13.88219772]
[1738955397168,0.03592631,197.85,197.84,5.0528]
[1738955397864,0.03592631,197.85,197.83,0.03528929]
[1738955398165,0.03592631,197.85,197.83,5.08818929]
[1738955399764,0.03592631,197.85,197.84,5.0528]
[1738955400360,0.03592631,197.85,197.84,13.88219772]
[1738955400569,0.03592631,197.85,197.84,5.0528]
[1738955403382,2.631e-05,197.85,197.84,18.84318704]
[1738955403577,50.39078278,197.94,197.84,13.79038704]
[1738955403872,143.90022221,197.96,197.89,13.79038704]
[1738955404081,13.79038704,197.96,197.83,13.79038704]
[1738955404473,13.79038704,197.93,197.83,13.79038704]
[1738955404669,13.79038704,197.87,197.77,13.79038704]
[1738955405477,5.0528,197.84,197.77,13.79038704]
[1738955405678,13.79038704,197.87,197.74,13.79038704]
[1738955405878,5.0536,197.81,197.74,13.79038704]
[1738955406079,5.0536,197.81,197.79,0.03636586]
[1738955406381,0.0377821,197.82,197.79,0.03636586]
[1738955408588,0.0377821,197.82,197.8,5.0538]
[1738955409288,0.0377821,197.82,197.81,5.0535]
[1738955412680,5.0513,197.9,197.8,13.79038704]
[1738955412885,5.0513,197.9,197.86,5.0523]
[1738955413283,5.0509,197.92,197.83,13.79038704]
[1738955413486,28.97206654,197.95,197.89,5.0515]
[1738955413680,15.92530151,197.95,197.89,5.0515]
[1738955413882,0.03369239,197.94,197.9,0.03191726]
[1738955414084,5.0505,197.93,197.9,0.03191726]
[1738955415790,0.03369239,197.94,197.82,13.79038704]
[1738955415982,5.1797,197.95,197.82,13.79038704]
[1738955416991,0.03455463,197.9,197.87,0.03242409]
[1738955418484,5.0515,197.89,197.87,0.03242409]
[1738955418994,0.03455463,197.9,197.87,0.03242409]
[1738955419186,0.03455463,197.9,197.89,5.0515]
[1738955420696,0.03455463,197.9,197.87,0.03242409]
[1738955420993,0.03455463,197.9,197.87,5.08422409]
[1738955421193,0.03455463,197.9,197.87,0.03242409]
[1738955422895,0.03455463,197.9,197.88,5.0516]
[1738955424394,0.03455463,197.9,197.87,0.03242409]
[1738955424894,5.0517,197.88,197.87,0.03242409]
[1738955425091,13.82494167,197.9,197.76,17.39198704]
[1738955425293,15.34828704,197.87,197.76,17.39198704]
[1738955425491,5.0526,197.85,197.79,5.054]
[1738955425692,5.0526,197.85,197.76,17.39198704]
[1738955426197,0.03679037,197.82,197.79,0.03214976]
[1738955427193,0.03679037,197.82,197.79,5.08614976]
[1738955427895,0.03679037,197.82,197.81,5.0535]
[1738955428291,0.03679037,197.82,197.79,13.8225368]
[1738955428489,0.03679037,197.82,197.79,5.08614976]
[1738955429299,5.09009037,197.82,197.79,0.03214976]
[1738955430002,0.03679037,197.82,197.79,0.03214976]
[1738955431101,5.09009037,197.82,197.79,0.03214976]
[1738955431300,0.03679037,197.82,197.79,0.03214976]
[1738955431599,5.09009037,197.82,197.79,0.03214976]
[1738955432598,0.03679037,197.82,197.8,5.0538]
[1738955434304,0.03679037,197.82,197.79,0.03214976]
[1738955434501,0.03679037,197.82,197.81,5.0535]
[1738955434707,0.03679037,197.82,197.81,13.88147126]
[1738955436696,0.03679037,197.82,197.81,18.84466377]
[1738955438296,3.5331,197.92,197.81,13.79116377]
[1738955438297,5.0512,197.91,197.81,13.79116377]
[1738955438497,3.5331,197.92,197.87,13.79116377]
[1738955438705,1.5065,197.97,197.87,13.79116377]
[1738955438905,5.0502,197.94,197.9,5.0511]
[1738955439103,5.1399,197.97,197.9,5.0511]
[1738955439300,5.1399,197.97,197.87,13.79116377]
[1738955439504,5.051,197.91,197.84,13.79116377]
[1738955439806,13.79116377,197.96,197.9,0.03392269]
[1738955440006,13.79116377,197.96,197.84,13.79116377]
[1738955440007,0.03777852,197.89,197.84,13.79116377]
[1738955440206,5.0507,197.93,197.87,5.0518]
[1738955440507,5.0507,197.93,197.85,0.0363816]
[1738955440707,0.03344484,197.92,197.85,0.0363816]
[1738955440906,0.03344484,197.92,197.88,5.0517]
[1738955441107,0.03344484,197.92,197.87,13.79116377]
[1738955441507,0.03344484,197.92,197.91,5.051]
[1738955442701,4.484e-05,197.92,197.91,13.031]
[1738955442910,3.72,198.0,197.91,7.98]
[1738955443105,3.72,198.0,197.96,5.0495]
[1738955444105,3.75574796,198.0,197.96,5.08570682]
[1738955444310,3.75574796,198.0,197.96,0.03620682]
[1738955446311,13.79116377,197.99,197.91,7.98]
[1738955446508,13.79116377,197.96,197.91,7.98]
[1738955446710,5.0507,197.93,197.91,7.98]
[1738955448513,0.03777731,197.94,197.91,7.98]
[1738955450305,5.0505,197.93,197.91,7.98]
[1738955451415,5.0507,197.92,197.91,7.98]
[1738955451615,0.03777731,197.94,197.91,7.98]
[1738955452015,5.08817731,197.94,197.91,7.98]
[1738955453414,0.03777731,197.94,197.93,5.0505]
[1738955456613,5.0477,198.04,197.99,5.0488]
[1738955457820,0.03763496,198.03,198.0,0.03782752]
[1738955458718,5.0484,198.01,198.0,0.03782752]
[1738955458918,1.5292,198.02,197.96,5.0497]
[1738955459218,5.0492,197.99,197.95,5.05]
[1738955459419,3.5129,198.01,197.91,7.98]
[1738955460220,0.0334498,197.98,197.94,0.03349125]
[1738955460813,5.05,197.95,197.94,0.03349125]
[1738955461920,13.79116377,197.97,197.91,7.98]
[1738955462223,5.0507,197.92,197.91,7.98]
[1738955468026,5.0507,197.92,197.91,3.0598]
[1738955468227,5.051,197.91,197.9,0.03592246]
[1738955470331,13.79116377,197.91,197.8,0.7263]
[1738955470525,5.0523,197.86,197.8,0.7263]
[1738955470930,13.79116377,197.91,197.8,0.7263]
[1738955471128,5.0519,197.88,197.8,0.7263]
[1738955471428,5.0519,197.88,197.84,5.0527]
[1738955471630,0.03680948,197.86,197.84,5.0527]
[1738955472132,0.03680948,197.86,197.85,5.0525]
[1738955476640,0.03680948,197.86,197.82,0.03773093]
[1738955477134,0.03680948,197.86,197.83,5.053]
[1738955477535,0.03680948,197.86,197.82,0.03773093]
[1738955477735,0.03680948,197.86,197.83,5.053]
[1738955478037,0.03680948,197.86,197.82,0.03773093]
[1738955480740,0.03680948,197.86,197.84,5.0526]
[1738955482539,0.03680948,197.86,197.85,5.0525]
[1738955482743,0.03680948,197.86,197.85,13.87900698]
[1738955483337,8.82650698,197.96,197.9,5.051]
[1738955483542,8.82650698,197.96,197.9,8.82650698]
[1738955483736,5.0507,197.93,197.88,8.82650698]
[1738955484044,8.82650698,197.94,197.88,8.82650698]
[1738955484539,0.03471437,197.93,197.89,0.03689992]
[1738955484740,8.82650698,197.92,197.89,0.03689992]
[1738955485441,5.051,197.91,197.89,0.03689992]
[1738955487348,5.0508,197.92,197.89,0.03689992]
[1738955489643,13.87730698,197.92,197.89,0.03689992]
[1738955489947,13.87730698,197.92,197.89,5.08829992]
[1738955490144,13.87730698,197.92,197.89,0.03689992]
[1738955492050,13.87730698,197.92,197.89,5.08829992]
[1738955492350,13.87730698,197.92,197.89,0.03689992]
[1738955496148,13.87730698,197.92,197.89,5.08839992]
[1738955496352,5.0508,197.92,197.89,0.03689992]
[1738955496554,13.87730698,197.92,197.89,0.03689992]
[1738955496756,8.82650698,197.92,197.89,0.03689992]
[1738955496951,5.0511,197.91,197.89,0.03689992]
[1738955497654,8.82650698,197.9,197.89,0.03689992]
[1738955497857,13.87770698,197.9,197.89,0.03689992]
[1738955500658,5.0512,197.9,197.89,0.03689992]
[1738955502451,13.87770698,197.9,197.89,0.03689992]
[1738955502953,5.0523,197.86,197.81,5.0533]
[1738955503160,5.0523,197.86,197.8,9.55280698]
[1738955503658,5.0523,197.86,197.82,5.053]
[1738955504160,0.03503421,197.86,197.83,5.053]
[1738955506562,0.03503421,197.86,197.85,5.0525]
[1738955509469,0.03503421,197.86,197.82,0.03515188]
[1738955509470,0.03503421,197.86,197.82,8.86165886]
[1738955509665,0.03503421,197.86,197.82,0.03515188]
[1738955509966,5.08733421,197.86,197.82,0.03515188]
[1738955511261,8.82650698,197.85,197.82,0.03515188]
[1738955511469,8.82650698,197.83,197.82,0.03515188]
[1738955512869,13.87910698,197.85,197.82,0.03515188]